[Event "Live Chess"]
[Site "Chess.com"]
[Date "2023.05.21"]
[Round "-"]
[White "manthanit"]
[Black "Pablo_dmp"]
[Result "0-1"]
[WhiteElo "1094"]
[BlackElo "1875"]
[TimeControl "300"]
[EndTime "5:31:59 PDT"]
[Termination "Pablo_dmp won by checkmate"]

1. e4 {[%clk 0:04:58]} 1... c5 {[%clk 0:04:51.7]} 2. Nc3 {[%clk 0:04:55.2]} 2...
g6 {[%clk 0:04:48.6]} 3. Bc4 {[%clk 0:04:53.6]} 3... Bg7 {[%clk 0:04:46.3]} 4.
b3 {[%clk 0:04:52.6]} 4... a6 {[%clk 0:04:42.9]} 5. Bb2 {[%clk 0:04:51.6]} 5...
b5 {[%clk 0:04:41.3]} 6. Be2 {[%clk 0:04:48.3]} 6... Bb7 {[%clk 0:04:40]} 7. d3
{[%clk 0:04:45.5]} 7... Qa5 {[%clk 0:04:34.4]} 8. Qd2 {[%clk 0:04:41.5]} 8...
Nc6 {[%clk 0:04:31]} 9. Nf3 {[%clk 0:04:33.6]} 9... Nh6 {[%clk 0:04:22]} 10. O-O
{[%clk 0:04:30.8]} 10... O-O {[%clk 0:04:20.6]} 11. Rab1 {[%clk 0:04:25.6]}
11... e6 {[%clk 0:03:56.5]} 12. h3 {[%clk 0:04:01.4]} 12... Nd4 {[%clk
0:03:48.3]} 13. Nxd4 {[%clk 0:03:56.8]} 13... cxd4 {[%clk 0:03:48.2]} 14. b4
{[%clk 0:03:34.3]} 14... Qxb4 {[%clk 0:03:45.7]} 15. Bc1 {[%clk 0:03:09.4]}
15... Qxc3 {[%clk 0:03:39.5]} 16. Qxc3 {[%clk 0:03:07.8]} 16... dxc3 {[%clk
0:03:39.4]} 17. Ba3 {[%clk 0:03:04.1]} 17... Rfd8 {[%clk 0:03:36]} 18. Be7
{[%clk 0:02:54.2]} 18... Re8 {[%clk 0:03:33.4]} 19. Bd6 {[%clk 0:02:50.3]} 19...
Rac8 {[%clk 0:03:31.2]} 20. f4 {[%clk 0:02:38.4]} 20... f5 {[%clk 0:03:30]} 21.
e5 {[%clk 0:02:26.4]} 21... Nf7 {[%clk 0:03:27]} 22. Bb4 {[%clk 0:02:22.6]}
22... Bf8 {[%clk 0:03:25.4]} 23. Bxf8 {[%clk 0:02:16.4]} 23... Kxf8 {[%clk
0:03:24.9]} 24. a4 {[%clk 0:02:10.7]} 24... Bc6 {[%clk 0:03:23.4]} 25. axb5
{[%clk 0:02:09.5]} 25... Bxb5 {[%clk 0:03:23.3]} 26. Rfe1 {[%clk 0:02:03.6]}
26... d6 {[%clk 0:03:22.7]} 27. d4 {[%clk 0:02:02]} 27... dxe5 {[%clk
0:03:21.4]} 28. fxe5 {[%clk 0:01:59.6]} 28... Red8 {[%clk 0:03:20.2]} 29. Bxb5
{[%clk 0:01:57.8]} 29... axb5 {[%clk 0:03:19.1]} 30. Rxb5 {[%clk 0:01:57.3]}
30... Rxd4 {[%clk 0:03:18.7]} 31. Reb1 {[%clk 0:01:46.8]} 31... Rc7 {[%clk
0:03:14.7]} 32. Rb8+ {[%clk 0:01:43.5]} 32... Kg7 {[%clk 0:03:12.3]} 33. Kh2
{[%clk 0:01:36.5]} 33... Nxe5 {[%clk 0:03:10.9]} 34. Re8 {[%clk 0:01:27.4]}
34... Rd6 {[%clk 0:03:01.2]} 35. Rbb8 {[%clk 0:01:22.7]} 35... Kf6 {[%clk
0:02:53.2]} 36. Rh8 {[%clk 0:01:17.7]} 36... Kg5 {[%clk 0:02:50.7]} 37. g4
{[%clk 0:00:46.9]} 37... fxg4 {[%clk 0:02:20.7]} 38. hxg4 {[%clk 0:00:46]} 38...
Nxg4+ {[%clk 0:02:20.6]} 39. Kg3 {[%clk 0:00:45.6]} 39... h5 {[%clk 0:02:15.7]}
40. Rb5+ {[%clk 0:00:38.4]} 40... Rd5 {[%clk 0:02:14.5]} 41. Rb6 {[%clk
0:00:27.2]} 41... Re5 {[%clk 0:02:10.3]} 42. Rg8 {[%clk 0:00:16.8]} 42... Re3+
{[%clk 0:02:07.2]} 43. Kg2 {[%clk 0:00:15.1]} 43... Rf7 {[%clk 0:02:05.4]} 44.
Rb5+ {[%clk 0:00:13.1]} 44... Rf5 {[%clk 0:02:03.1]} 45. Rb7 {[%clk 0:00:11.5]}
45... Rf2+ {[%clk 0:02:01.5]} 46. Kg1 {[%clk 0:00:10.3]} 46... Re1# {[%clk
0:02:01.4]} 0-1

[Event "Live Chess"]
[Site "Chess.com"]
[Date "2023.05.21"]
[Round "-"]
[White "seasidecastle27"]
[Black "Vitalii18a"]
[Result "1-0"]
[WhiteElo "1890"]
[BlackElo "1135"]
[TimeControl "300"]
[EndTime "5:32:02 PDT"]
[Termination "seasidecastle27 won by checkmate"]

1. d4 {[%clk 0:04:57.2]} 1... d5 {[%clk 0:04:59.2]} 2. Nf3 {[%clk 0:04:56.2]}
2... e6 {[%clk 0:04:58.4]} 3. Bf4 {[%clk 0:04:54.7]} 3... c5 {[%clk 0:04:58]} 4.
e3 {[%clk 0:04:53.6]} 4... c4 {[%clk 0:04:57]} 5. Nbd2 {[%clk 0:04:49.4]} 5...
Bd6 {[%clk 0:04:56.9]} 6. Bg3 {[%clk 0:04:45]} 6... Nf6 {[%clk 0:04:55.8]} 7.
Be2 {[%clk 0:04:41.5]} 7... Bb4 {[%clk 0:04:54.6]} 8. c3 {[%clk 0:04:39.8]} 8...
Ba5 {[%clk 0:04:52.5]} 9. Ne5 {[%clk 0:04:34.1]} 9... O-O {[%clk 0:04:48.9]} 10.
f4 {[%clk 0:04:30]} 10... Ne4 {[%clk 0:04:45.3]} 11. Nxe4 {[%clk 0:04:26.8]}
11... dxe4 {[%clk 0:04:43.8]} 12. Bxc4 {[%clk 0:04:25.3]} 12... f6 {[%clk
0:04:40.1]} 13. Ng4 {[%clk 0:04:18.1]} 13... Nc6 {[%clk 0:04:38.3]} 14. O-O
{[%clk 0:04:09]} 14... a6 {[%clk 0:04:24]} 15. f5 {[%clk 0:04:06]} 15... Kh8
{[%clk 0:04:16.9]} 16. fxe6 {[%clk 0:04:01.5]} 16... Qe7 {[%clk 0:04:14]} 17. d5
{[%clk 0:03:56.3]} 17... Ne5 {[%clk 0:04:10.1]} 18. d6 {[%clk 0:03:51.1]} 18...
Qe8 {[%clk 0:03:50.3]} 19. d7 {[%clk 0:03:32.7]} 19... Bxd7 {[%clk 0:03:35.6]}
20. exd7 {[%clk 0:03:29.5]} 20... Nxd7 {[%clk 0:03:27.9]} 21. Bd6 {[%clk
0:03:18.3]} 21... Rf7 {[%clk 0:03:24.9]} 22. Qd5 {[%clk 0:03:06.3]} 22... b5
{[%clk 0:03:04.1]} 23. Bb3 {[%clk 0:03:02.3]} 23... Bb6 {[%clk 0:02:58.3]} 24.
Qxf7 {[%clk 0:02:56.9]} 24... Qxf7 {[%clk 0:02:54]} 25. Bxf7 {[%clk 0:02:54.8]}
25... Bxe3+ {[%clk 0:02:51.7]} 26. Nxe3 {[%clk 0:02:52.8]} 26... Nb6 {[%clk
0:02:45.1]} 27. Rad1 {[%clk 0:02:49.4]} 27... h6 {[%clk 0:02:41.4]} 28. Bg6
{[%clk 0:02:46.9]} 28... Nc4 {[%clk 0:02:37.1]} 29. Nxc4 {[%clk 0:02:44.9]}
29... bxc4 {[%clk 0:02:35.8]} 30. Ba3 {[%clk 0:02:36.3]} 30... Kg8 {[%clk
0:02:32.8]} 31. Rd7 {[%clk 0:02:34.1]} 31... a5 {[%clk 0:02:25.1]} 32. Re1
{[%clk 0:02:31.8]} 32... f5 {[%clk 0:02:21.8]} 33. Bxf5 {[%clk 0:02:29.8]} 33...
g6 {[%clk 0:02:18.7]} 34. Bxg6 {[%clk 0:02:28.1]} 34... e3 {[%clk 0:02:09.9]}
35. Rxe3 {[%clk 0:02:26.5]} 35... a4 {[%clk 0:02:06.9]} 36. Ree7 {[%clk
0:02:24.1]} 36... h5 {[%clk 0:02:04.7]} 37. Rg7+ {[%clk 0:02:22]} 37... Kh8
{[%clk 0:02:02.6]} 38. Rh7+ {[%clk 0:02:21.1]} 38... Kg8 {[%clk 0:02:01.3]} 39.
Rdg7# {[%clk 0:02:20]} 1-0

[Event "Live Chess"]
[Site "Chess.com"]
[Date "2023.05.21"]
[Round "-"]
[White "AMCWAML"]
[Black "Doge_Dandolo"]
[Result "1-0"]
[WhiteElo "2325"]
[BlackElo "1909"]
[TimeControl "300"]
[EndTime "5:32:02 PDT"]
[Termination "AMCWAML won by resignation"]

1. Nf3 {[%clk 0:04:58.4]} 1... Nf6 {[%clk 0:04:55]} 2. c4 {[%clk 0:04:58.3]}
2... c5 {[%clk 0:04:53.6]} 3. g3 {[%clk 0:04:57.7]} 3... b6 {[%clk 0:04:52.2]}
4. Nc3 {[%clk 0:04:57.2]} 4... Bb7 {[%clk 0:04:51.7]} 5. Bg2 {[%clk 0:04:56.9]}
5... e6 {[%clk 0:04:50.5]} 6. O-O {[%clk 0:04:56.2]} 6... Be7 {[%clk 0:04:49.6]}
7. b3 {[%clk 0:04:54.9]} 7... a6 {[%clk 0:04:48.5]} 8. Bb2 {[%clk 0:04:54.2]}
8... d6 {[%clk 0:04:47.5]} 9. d4 {[%clk 0:04:52.7]} 9... cxd4 {[%clk 0:04:46.2]}
10. Qxd4 {[%clk 0:04:52.3]} 10... Qc7 {[%clk 0:04:44.6]} 11. Rfd1 {[%clk
0:04:48.5]} 11... O-O {[%clk 0:04:42]} 12. Rac1 {[%clk 0:04:38.1]} 12... Rd8
{[%clk 0:04:38.8]} 13. h4 {[%clk 0:04:18.2]} 13... Nbd7 {[%clk 0:04:33.6]} 14.
h5 {[%clk 0:04:12.6]} 14... h6 {[%clk 0:04:29.2]} 15. g4 {[%clk 0:03:13.7]}
15... e5 {[%clk 0:04:17.3]} 16. Qd2 {[%clk 0:03:06.2]} 16... Nxg4 {[%clk
0:04:12.1]} 17. Nd5 {[%clk 0:02:55.8]} 17... Bxd5 {[%clk 0:04:09.6]} 18. cxd5
{[%clk 0:02:50.9]} 18... Qb8 {[%clk 0:04:07.6]} 19. Bh3 {[%clk 0:02:44]} 19...
Ndf6 {[%clk 0:04:04.4]} 20. Rc6 {[%clk 0:02:39.2]} 20... b5 {[%clk 0:04:00.2]}
21. e3 {[%clk 0:02:28.9]} 21... Ne4 {[%clk 0:03:41.2]} 22. Bxg4 {[%clk
0:02:24.7]} 22... Nxd2 {[%clk 0:03:39.2]} 23. Rxd2 {[%clk 0:02:23.3]} 23... Bf6
{[%clk 0:03:32.7]} 24. e4 {[%clk 0:02:18.7]} 24... Bg5 {[%clk 0:03:29.9]} 25.
Rdc2 {[%clk 0:02:16.6]} 25... Bf4 {[%clk 0:03:12.4]} 26. Nh4 {[%clk 0:01:53.2]}
26... Qb6 {[%clk 0:02:55.7]} 27. Rxb6 {[%clk 0:01:51.3]} 1-0

[Event "Live Chess"]
[Site "Chess.com"]
[Date "2023.05.21"]
[Round "-"]
[White "davigator"]
[Black "Hacker_2009"]
[Result "1-0"]
[WhiteElo "2315"]
[BlackElo "1946"]
[TimeControl "300"]
[EndTime "5:32:02 PDT"]
[Termination "davigator won by resignation"]

1. e4 {[%clk 0:04:53.2]} 1... c5 {[%clk 0:04:58.7]} 2. Nf3 {[%clk 0:04:51.5]}
2... d6 {[%clk 0:04:57.5]} 3. d4 {[%clk 0:04:51]} 3... cxd4 {[%clk 0:04:57.4]}
4. Nxd4 {[%clk 0:04:50.3]} 4... Nf6 {[%clk 0:04:56.5]} 5. Nc3 {[%clk 0:04:49.8]}
5... a6 {[%clk 0:04:55.1]} 6. Bg5 {[%clk 0:04:47.8]} 6... e6 {[%clk 0:04:53.4]}
7. f4 {[%clk 0:04:46.6]} 7... Be7 {[%clk 0:04:52.3]} 8. Qf3 {[%clk 0:04:45.4]}
8... O-O {[%clk 0:04:49]} 9. O-O-O {[%clk 0:04:44.8]} 9... Nc6 {[%clk
0:04:46.1]} 10. Nxc6 {[%clk 0:04:33.9]} 10... bxc6 {[%clk 0:04:43.7]} 11. e5
{[%clk 0:04:33.3]} 11... Nd5 {[%clk 0:04:42.8]} 12. Bxe7 {[%clk 0:04:24]} 12...
Qxe7 {[%clk 0:04:39.5]} 13. Ne4 {[%clk 0:04:16.9]} 13... dxe5 {[%clk 0:04:26.9]}
14. fxe5 {[%clk 0:04:15.2]} 14... Bb7 {[%clk 0:04:23.5]} 15. c4 {[%clk
0:04:13.8]} 15... Nb4 {[%clk 0:04:19.8]} 16. a3 {[%clk 0:04:12.4]} 16... f5
{[%clk 0:03:54.6]} 17. exf6 {[%clk 0:04:09.4]} 17... gxf6 {[%clk 0:03:51.7]} 18.
axb4 {[%clk 0:04:07.5]} 18... f5 {[%clk 0:03:47.2]} 19. Nd6 {[%clk 0:04:05.8]}
19... Rab8 {[%clk 0:03:34.9]} 20. c5 {[%clk 0:04:01.5]} 20... Qh4 {[%clk
0:03:28]} 21. Bc4 {[%clk 0:03:57.4]} 1-0

[Event "Live Chess"]
[Site "Chess.com"]
[Date "2023.05.21"]
[Round "-"]
[White "Duke_of_Bebington"]
[Black "jbooth"]
[Result "0-1"]
[WhiteElo "1576"]
[BlackElo "1673"]
[TimeControl "300"]
[EndTime "5:32:07 PDT"]
[Termination "jbooth won by resignation"]

1. e4 {[%clk 0:04:59]} 1... d6 {[%clk 0:04:58.7]} 2. d4 {[%clk 0:04:57.2]} 2...
Nf6 {[%clk 0:04:57.1]} 3. Nc3 {[%clk 0:04:55.4]} 3... Nbd7 {[%clk 0:04:52.7]} 4.
Nf3 {[%clk 0:04:53.7]} 4... e5 {[%clk 0:04:52.1]} 5. dxe5 {[%clk 0:04:50.7]}
5... dxe5 {[%clk 0:04:49.7]} 6. Bg5 {[%clk 0:04:47.6]} 6... c6 {[%clk
0:04:47.5]} 7. a3 {[%clk 0:04:39.3]} 7... Be7 {[%clk 0:04:45.8]} 8. Bxf6 {[%clk
0:04:30.8]} 8... Bxf6 {[%clk 0:04:42.8]} 9. Bc4 {[%clk 0:04:28.2]} 9... O-O
{[%clk 0:04:40.9]} 10. O-O {[%clk 0:04:26.3]} 10... Qc7 {[%clk 0:04:39.3]} 11.
Qe2 {[%clk 0:04:21.6]} 11... Nb6 {[%clk 0:04:36.3]} 12. Ba2 {[%clk 0:04:14.5]}
12... Bg4 {[%clk 0:04:34.2]} 13. h3 {[%clk 0:04:12.4]} 13... Bh5 {[%clk
0:04:30.9]} 14. Qe3 {[%clk 0:04:11.2]} 14... Rad8 {[%clk 0:04:24.2]} 15. Rad1
{[%clk 0:03:59.3]} 15... Bg6 {[%clk 0:04:20]} 16. Rd3 {[%clk 0:03:50.2]} 16...
Rxd3 {[%clk 0:04:16.8]} 17. cxd3 {[%clk 0:03:49]} 17... Rd8 {[%clk 0:04:13.7]}
18. Rd1 {[%clk 0:03:46.9]} 18... Be7 {[%clk 0:04:01.7]} 19. Ne2 {[%clk
0:03:35.1]} 19... Kf8 {[%clk 0:03:47.3]} 20. d4 {[%clk 0:03:26.9]} 20... exd4
{[%clk 0:03:40.3]} 21. Nexd4 {[%clk 0:03:24.5]} 21... Nd7 {[%clk 0:03:12.6]} 22.
b4 {[%clk 0:03:09.8]} 22... Ne5 {[%clk 0:03:10.2]} 23. Nxe5 {[%clk 0:03:03.1]}
23... Qxe5 {[%clk 0:03:08.4]} 24. Bb1 {[%clk 0:02:57.4]} 24... f5 {[%clk
0:02:48.5]} 25. exf5 {[%clk 0:02:49.7]} 25... Qxe3 {[%clk 0:02:38.5]} 26. fxe3
{[%clk 0:02:49.6]} 26... Bf7 {[%clk 0:02:34.2]} 27. Bc2 {[%clk 0:02:21.2]} 27...
Bf6 {[%clk 0:02:22.3]} 28. Ne6+ {[%clk 0:01:59.8]} 28... Bxe6 {[%clk 0:02:20.1]}
29. Rxd8+ {[%clk 0:01:58.3]} 29... Bxd8 {[%clk 0:02:17.4]} 30. fxe6 {[%clk
0:01:56]} 30... Ke7 {[%clk 0:02:08.6]} 31. Bxh7 {[%clk 0:01:54.3]} 31... Kxe6
{[%clk 0:02:07.5]} 32. e4 {[%clk 0:01:50.8]} 32... Ke5 {[%clk 0:02:06.2]} 33.
Kf1 {[%clk 0:01:46.5]} 33... Be7 {[%clk 0:02:03.5]} 34. Ke2 {[%clk 0:01:42.2]}
34... a5 {[%clk 0:02:03]} 35. bxa5 {[%clk 0:01:38.7]} 35... Bxa3 {[%clk
0:02:01.2]} 36. Kd3 {[%clk 0:01:36.4]} 36... Bb4 {[%clk 0:02:00.6]} 37. a6
{[%clk 0:01:34.2]} 37... bxa6 {[%clk 0:01:58.4]} 38. Kc4 {[%clk 0:01:33.3]}
38... Bd6 {[%clk 0:01:54.4]} 39. Kb3 {[%clk 0:01:30.4]} 39... a5 {[%clk
0:01:50.3]} 40. Bf5 {[%clk 0:01:24.9]} 40... Kd4 {[%clk 0:01:45.6]} 41. Ka4
{[%clk 0:01:12.3]} 41... Bb4 {[%clk 0:01:42.2]} 42. Bd7 {[%clk 0:01:06]} 42...
c5 {[%clk 0:01:40.4]} 43. Bb5 {[%clk 0:01:05.3]} 43... Kxe4 {[%clk 0:01:34.4]}
44. Kb3 {[%clk 0:01:02]} 44... Kd4 {[%clk 0:01:32.9]} 45. Ka4 {[%clk 0:01:00.5]}
45... c4 {[%clk 0:01:30.8]} 46. g4 {[%clk 0:00:55.9]} 46... Be1 {[%clk
0:01:26.4]} 47. g5 {[%clk 0:00:49.7]} 47... c3 {[%clk 0:01:13.6]} 48. Kb3 {[%clk
0:00:47.3]} 48... Ke3 {[%clk 0:01:08.6]} 49. g6 {[%clk 0:00:37.6]} 49... Kd2
{[%clk 0:01:03.3]} 50. Ba4 {[%clk 0:00:30.5]} 50... c2 {[%clk 0:00:59.5]} 51.
Kb2 {[%clk 0:00:29]} 0-1

[Event "Live Chess"]
[Site "Chess.com"]
[Date "2023.05.21"]
[Round "-"]
[White "EdenHazard8"]
[Black "HoarseyHorsey"]
[Result "1-0"]
[WhiteElo "1937"]
[BlackElo "1483"]
[TimeControl "300"]
[EndTime "5:32:16 PDT"]
[Termination "EdenHazard8 won by resignation"]

1. e4 {[%clk 0:04:59]} 1... c5 {[%clk 0:04:57.8]} 2. Nc3 {[%clk 0:04:56.1]} 2...
e6 {[%clk 0:04:57.3]} 3. f4 {[%clk 0:04:56]} 3... Nc6 {[%clk 0:04:56.5]} 4. Nf3
{[%clk 0:04:55.9]} 4... g6 {[%clk 0:04:56]} 5. Bb5 {[%clk 0:04:55.1]} 5... Bg7
{[%clk 0:04:55.4]} 6. Bxc6 {[%clk 0:04:53.9]} 6... bxc6 {[%clk 0:04:55.3]} 7. d3
{[%clk 0:04:53.6]} 7... Ne7 {[%clk 0:04:54.5]} 8. O-O {[%clk 0:04:53.5]} 8...
O-O {[%clk 0:04:53.4]} 9. Qe1 {[%clk 0:04:53.1]} 9... f6 {[%clk 0:04:52.4]} 10.
Qh4 {[%clk 0:04:52.6]} 10... d6 {[%clk 0:04:48.6]} 11. Be3 {[%clk 0:04:48.9]}
11... Rb8 {[%clk 0:04:45.1]} 12. e5 {[%clk 0:04:47.2]} 12... dxe5 {[%clk
0:04:41.1]} 13. fxe5 {[%clk 0:04:47.1]} 13... f5 {[%clk 0:04:40.5]} 14. Bxc5
{[%clk 0:04:42.7]} 14... Rf7 {[%clk 0:04:32.5]} 15. Ng5 {[%clk 0:04:38.7]} 15...
h6 {[%clk 0:04:23.8]} 16. Nxf7 {[%clk 0:04:33.7]} 16... Kxf7 {[%clk 0:04:23.7]}
17. Bxe7 {[%clk 0:04:32.2]} 17... Qxe7 {[%clk 0:04:22.3]} 18. Qxe7+ {[%clk
0:04:32.1]} 18... Kxe7 {[%clk 0:04:20.9]} 19. d4 {[%clk 0:04:31.2]} 19... Rxb2
{[%clk 0:04:19.4]} 20. Rfc1 {[%clk 0:04:29]} 20... Ba6 {[%clk 0:04:10.3]} 21.
Rab1 {[%clk 0:04:27.4]} 21... Rxb1 {[%clk 0:04:08.4]} 22. Rxb1 {[%clk
0:04:27.3]} 22... Bc4 {[%clk 0:04:06.8]} 23. Rb2 {[%clk 0:04:25.7]} 23... Bd5
{[%clk 0:04:04.9]} 24. Nxd5+ {[%clk 0:04:23.1]} 24... cxd5 {[%clk 0:04:03.5]}
25. Rb7+ {[%clk 0:04:23]} 25... Kf8 {[%clk 0:04:02.3]} 26. Rxa7 {[%clk
0:04:21.8]} 1-0

[Event "Live Chess"]
[Site "Chess.com"]
[Date "2023.05.21"]
[Round "-"]
[White "JoshMcK"]
[Black "mattihelenius2"]
[Result "1-0"]
[WhiteElo "1573"]
[BlackElo "491"]
[TimeControl "300"]
[EndTime "5:32:52 PDT"]
[Termination "JoshMcK won by resignation"]

1. e4 {[%clk 0:04:58]} 1... e5 {[%clk 0:04:56]} 2. Nf3 {[%clk 0:04:56.6]} 2...
d5 {[%clk 0:04:46.2]} 3. exd5 {[%clk 0:04:51.3]} 3... Qxd5 {[%clk 0:04:44.7]} 4.
Nc3 {[%clk 0:04:50]} 4... Qc5 {[%clk 0:04:30.8]} 5. d4 {[%clk 0:04:44.5]} 5...
Qc6 {[%clk 0:04:14.1]} 6. Bb5 {[%clk 0:04:40.9]} 6... Ne7 {[%clk 0:04:04.1]} 7.
Nxe5 {[%clk 0:04:36.3]} 7... a6 {[%clk 0:03:49.3]} 8. Nxc6 {[%clk 0:04:32.2]}
8... Nexc6 {[%clk 0:03:49.2]} 9. Bxc6+ {[%clk 0:04:31.1]} 9... bxc6 {[%clk
0:03:48.8]} 10. O-O {[%clk 0:04:30]} 10... Bb4 {[%clk 0:03:46.3]} 11. Qe2+
{[%clk 0:04:26]} 11... Kd7 {[%clk 0:03:43.5]} 12. Qg4+ {[%clk 0:04:20.8]} 12...
Ke8 {[%clk 0:03:40]} 13. Qxg7 {[%clk 0:04:18.6]} 1-0

[Event "Live Chess"]
[Site "Chess.com"]
[Date "2023.05.21"]
[Round "-"]
[White "WelshTiger"]
[Black "Berdgross"]
[Result "1-0"]
[WhiteElo "2300"]
[BlackElo "682"]
[TimeControl "300"]
[EndTime "5:32:53 PDT"]
[Termination "WelshTiger won by checkmate"]

1. e4 {[%clk 0:04:52.6]} 1... e5 {[%clk 0:04:59.9]} 2. Nf3 {[%clk 0:04:50.3]}
2... d5 {[%clk 0:04:59.8]} 3. exd5 {[%clk 0:04:49.1]} 3... Qxd5 {[%clk
0:04:58.1]} 4. Nc3 {[%clk 0:04:47.8]} 4... Qe6 {[%clk 0:04:52.5]} 5. b3 {[%clk
0:04:40.5]} 5... e4 {[%clk 0:04:51.1]} 6. Bc4 {[%clk 0:04:39.4]} 6... Qc6 {[%clk
0:04:41]} 7. Ne5 {[%clk 0:04:30.8]} 7... Qc5 {[%clk 0:04:30.5]} 8. Nxf7 {[%clk
0:04:27.1]} 8... Nf6 {[%clk 0:04:10.1]} 9. Nxh8 {[%clk 0:04:20.9]} 9... Ng4
{[%clk 0:04:08.5]} 10. O-O {[%clk 0:04:08.6]} 10... Qd6 {[%clk 0:03:59.4]} 11.
g3 {[%clk 0:04:07.5]} 11... Qh6 {[%clk 0:03:51.8]} 12. h4 {[%clk 0:03:59.4]}
12... Nc6 {[%clk 0:03:25.6]} 13. d4 {[%clk 0:03:45.5]} 13... exd3 {[%clk
0:03:19.1]} 14. Bxh6 {[%clk 0:03:43.7]} 14... Nxh6 {[%clk 0:03:15.2]} 15. Re1+
{[%clk 0:03:40.6]} 15... Be7 {[%clk 0:03:06.2]} 16. Qxd3 {[%clk 0:03:35]} 16...
Bf5 {[%clk 0:02:52.6]} 17. Qe3 {[%clk 0:03:21.2]} 17... O-O-O {[%clk 0:02:47.4]}
18. Nd5 {[%clk 0:03:18.8]} 18... Bb4 {[%clk 0:02:30.7]} 19. Nxb4 {[%clk
0:03:17.3]} 19... Nxb4 {[%clk 0:02:27.3]} 20. Rad1 {[%clk 0:03:15.5]} 20... Rxd1
{[%clk 0:02:23.8]} 21. Rxd1 {[%clk 0:03:12.8]} 21... Nxc2 {[%clk 0:02:19.4]} 22.
Qe8# {[%clk 0:03:11.2]} 1-0

[Event "Live Chess"]
[Site "Chess.com"]
[Date "2023.05.21"]
[Round "-"]
[White "OleksiyJr1"]
[Black "Brooms1989"]
[Result "0-1"]
[WhiteElo "1024"]
[BlackElo "1165"]
[TimeControl "300"]
[EndTime "5:33:07 PDT"]
[Termination "Brooms1989 won by resignation"]

1. e4 {[%clk 0:04:56.3]} 1... e5 {[%clk 0:04:56.9]} 2. Nf3 {[%clk 0:04:55.4]}
2... Nc6 {[%clk 0:04:55.2]} 3. Bc4 {[%clk 0:04:50.7]} 3... Nf6 {[%clk
0:04:52.8]} 4. Nc3 {[%clk 0:04:26]} 4... Bc5 {[%clk 0:04:50.7]} 5. d3 {[%clk
0:04:25.9]} 5... h6 {[%clk 0:04:48.5]} 6. O-O {[%clk 0:04:24.3]} 6... O-O {[%clk
0:04:47.2]} 7. h3 {[%clk 0:04:24.2]} 7... d6 {[%clk 0:04:44.6]} 8. Nd5 {[%clk
0:04:23.5]} 8... Nxd5 {[%clk 0:04:42.3]} 9. Bxd5 {[%clk 0:04:23.4]} 9... Ne7
{[%clk 0:04:41.3]} 10. c4 {[%clk 0:04:21.5]} 10... Nxd5 {[%clk 0:04:39.7]} 11.
cxd5 {[%clk 0:04:21.4]} 11... c6 {[%clk 0:04:36.8]} 12. dxc6 {[%clk 0:04:20.4]}
12... bxc6 {[%clk 0:04:36.7]} 13. Re1 {[%clk 0:04:18.9]} 13... Be6 {[%clk
0:04:25.6]} 14. Be3 {[%clk 0:04:09.8]} 14... Bxe3 {[%clk 0:04:19.9]} 15. Rxe3
{[%clk 0:04:06.2]} 15... Rb8 {[%clk 0:04:19.3]} 16. b3 {[%clk 0:04:04.6]} 16...
f5 {[%clk 0:04:08.5]} 17. Rc1 {[%clk 0:03:54.8]} 17... f4 {[%clk 0:04:02]} 18.
Re2 {[%clk 0:03:53]} 18... c5 {[%clk 0:03:55.9]} 19. Nd2 {[%clk 0:03:30]} 19...
Qg5 {[%clk 0:03:51.4]} 20. Nc4 {[%clk 0:03:17.9]} 20... Bxh3 {[%clk 0:03:49.1]}
21. Kf1 {[%clk 0:03:02.4]} 21... Qxg2+ {[%clk 0:03:42]} 0-1

[Event "Live Chess"]
[Site "Chess.com"]
[Date "2023.05.21"]
[Round "-"]
[White "Ferrarifan27"]
[Black "chessfiction"]
[Result "0-1"]
[WhiteElo "2057"]
[BlackElo "2307"]
[TimeControl "300"]
[EndTime "5:33:08 PDT"]
[Termination "chessfiction won by checkmate"]

1. e4 {[%clk 0:04:59]} 1... d6 {[%clk 0:04:58.7]} 2. d4 {[%clk 0:04:57.6]} 2...
Nf6 {[%clk 0:04:58.6]} 3. Nc3 {[%clk 0:04:52.5]} 3... c6 {[%clk 0:04:57.8]} 4.
Nf3 {[%clk 0:04:48.6]} 4... Bg4 {[%clk 0:04:55.8]} 5. Be2 {[%clk 0:04:43]} 5...
Nbd7 {[%clk 0:04:54.1]} 6. h3 {[%clk 0:04:38]} 6... Bh5 {[%clk 0:04:52.9]} 7.
O-O {[%clk 0:04:34.5]} 7... e5 {[%clk 0:04:52]} 8. dxe5 {[%clk 0:04:32.7]} 8...
dxe5 {[%clk 0:04:51.9]} 9. Bg5 {[%clk 0:04:29.7]} 9... Qc7 {[%clk 0:04:50.8]}
10. Qd3 {[%clk 0:04:22.1]} 10... O-O-O {[%clk 0:04:49.6]} 11. Qe3 {[%clk
0:04:19.3]} 11... Bc5 {[%clk 0:04:47.6]} 12. Qc1 {[%clk 0:04:17.7]} 12... h6
{[%clk 0:04:45.4]} 13. Bh4 {[%clk 0:04:16.2]} 13... g5 {[%clk 0:04:42.8]} 14.
Bg3 {[%clk 0:04:15.2]} 14... g4 {[%clk 0:04:41.8]} 15. hxg4 {[%clk 0:04:12.2]}
15... Bxg4 {[%clk 0:04:41.6]} 16. Nh2 {[%clk 0:04:08.4]} 16... Bxe2 {[%clk
0:04:35.2]} 17. Nxe2 {[%clk 0:04:08.3]} 17... Rdg8 {[%clk 0:04:31.8]} 18. b4
{[%clk 0:03:59.5]} 18... Bb6 {[%clk 0:04:26.5]} 19. c4 {[%clk 0:03:56.1]} 19...
c5 {[%clk 0:04:12.6]} 20. Qc2 {[%clk 0:03:19.8]} 20... cxb4 {[%clk 0:04:09.2]}
21. Rab1 {[%clk 0:03:10]} 21... Nc5 {[%clk 0:04:03.7]} 22. Rxb4 {[%clk
0:02:57.6]} 22... Nfxe4 {[%clk 0:03:55]} 23. Bh4 {[%clk 0:02:53.1]} 23... Rg6
{[%clk 0:03:46.5]} 24. Nc3 {[%clk 0:02:32.9]} 24... Nxc3 {[%clk 0:03:40.5]} 25.
Qxc3 {[%clk 0:02:31.6]} 25... Rhg8 {[%clk 0:03:38.7]} 26. g3 {[%clk 0:02:29.2]}
26... Ne4 {[%clk 0:03:36.2]} 27. Qf3 {[%clk 0:02:24.6]} 27... Nxg3 {[%clk
0:03:26.6]} 28. Rxb6 {[%clk 0:02:18.3]} 28... Nxf1+ {[%clk 0:03:24.4]} 29. Kxf1
{[%clk 0:02:16.3]} 29... Rg1+ {[%clk 0:03:14.4]} 30. Ke2 {[%clk 0:02:14.8]}
30... Qxc4+ {[%clk 0:03:12.9]} 31. Ke3 {[%clk 0:02:13.4]} 31... Re1+ {[%clk
0:03:09.3]} 32. Qe2 {[%clk 0:02:09.9]} 32... Rxe2+ {[%clk 0:03:07.7]} 33. Kf3
{[%clk 0:02:08.6]} 33... Qe4# {[%clk 0:03:06.7]} 0-1